bitfinex/quotes_BTCUSD_20250519
["timestamp","ask_amount","ask_price","bid_price","bid_amount"]
[1747649929565,0.501,102860.0,102850.0,0.74429371]
[1747649929970,0.5162,102860.0,102850.0,0.72889371]
[1747649935027,0.501,102860.0,102850.0,0.72889371]
[1747649935235,0.501,102860.0,102850.0,0.75039371]
[1747649939396,0.501,102860.0,102850.0,0.74529371]
[1747649939983,0.501,102860.0,102850.0,0.72889371]
[1747649941752,0.501,102860.0,102850.0,0.74539371]
[1747649942478,0.501,102860.0,102850.0,0.74525152]
[1747649943134,0.501,102860.0,102850.0,0.75035152]
[1747649943821,0.501,102860.0,102850.0,0.72875152]
[1747649944026,0.533,102860.0,102850.0,0.72875152]
[1747649944239,0.76660375,102860.0,102850.0,0.13114007]
[1747649944492,0.543,102860.0,102850.0,0.23052871]
[1747649944691,0.5527211,102860.0,102850.0,0.23052871]
[1747649944921,0.543,102860.0,102850.0,0.23052871]
[1747649945113,0.543,102860.0,102850.0,0.57052871]
[1747649945363,0.533,102860.0,102850.0,0.57052871]
[1747649945575,0.543,102860.0,102850.0,0.57052871]
[1747649946216,0.543,102860.0,102850.0,0.57752871]
[1747649946392,0.55272119,102860.0,102850.0,0.57752871]
[1747649946596,0.543,102860.0,102850.0,0.57752871]
[1747649946948,0.5527211,102860.0,102850.0,0.57752871]
[1747649947156,0.543,102860.0,102850.0,0.57752871]
[1747649951299,0.533,102860.0,102850.0,0.68937896]
[1747649951521,0.5176,102860.0,102850.0,0.68937896]
[1747649951732,0.5276,102860.0,102850.0,0.68937896]
[1747649951959,0.5428,102860.0,102850.0,0.68937896]
[1747649952167,0.75668227,102860.0,102850.0,0.01390323]
[1747649952387,0.75668227,102860.0,102850.0,0.21808387]
[1747649952609,0.76640412,102860.0,102850.0,0.20836117]
[1747649952819,0.76640412,102860.0,102850.0,0.22780667]
[1747649953252,0.76640412,102860.0,102850.0,0.23752918]
[1747649953453,0.77612607,102860.0,102850.0,0.2472516]
[1747649954108,0.56196405,102860.0,102850.0,0.25697383]
[1747649954322,0.57168552,102860.0,102850.0,0.25697383]
[1747649954542,0.54252129,102860.0,102850.0,0.25697383]
[1747649954750,0.5328,102860.0,102850.0,0.25697383]
[1747649956506,0.5428,102860.0,102850.0,0.25697383]
[1747649957169,0.5328,102860.0,102850.0,0.25697383]
[1747649957377,0.50427851,102860.0,102850.0,0.59697383]
[1747649958431,0.52027851,102860.0,102850.0,0.59697383]
[1747649958649,0.53972118,102860.0,102850.0,0.58725141]
[1747649959051,0.5299998,102860.0,102850.0,0.58725141]
[1747649959269,0.52027851,102860.0,102850.0,0.58725141]
[1747649963951,0.52027851,102860.0,102850.0,0.69910166]
[1747649966151,0.52027851,102860.0,102850.0,0.72602984]
[1747649967264,0.52027851,102860.0,102850.0,0.61417959]
[1747649967472,0.5299998,102860.0,102850.0,0.58725141]
[1747649967689,0.52027851,102860.0,102850.0,0.58725141]
[1747649970427,0.52027851,102860.0,102850.0,0.61418486]
[1747649972021,0.52027851,102860.0,102850.0,0.72603511]
[1747649972248,0.49427851,102860.0,102850.0,0.72603511]
[1747649972692,0.47767851,102860.0,102850.0,0.72603511]
[1747649973351,0.49377851,102860.0,102850.0,0.72603511]
[1747649975248,0.49377851,102860.0,102850.0,0.72599511]
[1747649975646,0.49267851,102860.0,102850.0,0.72599511]
[1747649981487,0.47767851,102860.0,102850.0,1.16109511]
[1747649982262,0.42538204,102860.0,102850.0,2.85538811]
[1747649982476,0.0428,102890.0,102880.0,0.57810113]
[1747649982700,0.0328,102890.0,102880.0,0.67541053]
[1747649982903,0.0428,102890.0,102880.0,0.67541053]
[1747649983431,0.0328,102890.0,102880.0,0.67541053]
[1747649983642,0.0428,102890.0,102880.0,0.67541053]
[1747649984275,0.0438,102890.0,102880.0,0.67541053]
[1747649984936,0.0368,102890.0,102880.0,0.67541053]
[1747649985150,0.0206,102890.0,102880.0,0.67541053]
[1747649985631,0.0176,102890.0,102880.0,0.68221055]
[1747649985849,0.0415,102900.0,102890.0,0.5780794]
[1747649986073,0.0415,102900.0,102890.0,0.6753888]
[1747649987043,0.04197631,102900.0,102890.0,0.6753888]
[1747649987256,0.04497631,102900.0,102890.0,0.6753888]
[1747649988381,0.04797631,102900.0,102890.0,0.6753888]
[1747649988786,0.04797631,102900.0,102890.0,0.68218882]
[1747649989626,0.04797631,102900.0,102890.0,0.69678749]
[1747649990185,0.04797631,102900.0,102890.0,0.68218882]
[1747649992650,0.02287631,102900.0,102890.0,0.68218882]
[1747649993289,0.02287631,102900.0,102890.0,0.6753888]
[1747649993855,0.00657631,102900.0,102890.0,0.6753888]
[1747649994348,0.00657631,102900.0,102890.0,0.6911888]
[1747649994773,0.00357631,102900.0,102890.0,0.70565872]
[1747649994977,0.00457631,102900.0,102890.0,0.70565872]
[1747649995220,0.0417,102910.0,102900.0,0.57805767]
[1747649995428,0.0417,102910.0,102900.0,0.67536707]
[1747649996741,0.0467,102910.0,102900.0,0.67536707]
[1747649998748,0.05641637,102910.0,102900.0,0.66564956]
[1747649998962,0.07584997,102910.0,102900.0,0.57323452]
[1747649999174,0.06613303,102910.0,102900.0,0.57323452]
[1747649999381,0.05641637,102910.0,102900.0,0.57323452]
[1747649999571,0.05641637,102910.0,102900.0,0.5800156]
[1747649999786,0.0467,102910.0,102900.0,0.5800156]
[1747650000439,0.0467,102910.0,102900.0,0.69186585]
[1747650001762,0.0467,102910.0,102900.0,0.68508477]
[1747650002630,0.0214,102910.0,102900.0,0.68508477]
[1747650003314,0.005,102910.0,102900.0,0.68508477]
[1747650003795,0.0206,102910.0,102900.0,0.68508477]
[1747650004049,0.0339,102910.0,102900.0,0.68508477]
[1747650004274,0.0349,102910.0,102900.0,0.68508477]
[1747650004716,0.0329,102910.0,102900.0,0.68508477]
[1747650005029,0.0329,102910.0,102900.0,0.68608477]
[1747650008551,0.0429,102910.0,102900.0,0.5742348]
[1747650008796,0.05261637,102910.0,102900.0,0.5742348]
[1747650009020,0.07204959,102910.0,102900.0,0.5742348]
[1747650009196,0.06233284,102910.0,102900.0,0.5742348]
[1747650009440,0.26639454,102910.0,102900.0,0.56451729]
[1747650009651,0.52556819,102910.0,102900.0,0.5645172]
[1747650009856,0.33122362,102910.0,102900.0,0.57423471]
[1747650010059,0.08204997,102910.0,102900.0,0.5742348]
[1747650010194,0.27639454,102910.0,102900.0,0.5645172]
[1747650011074,0.27639454,102910.0,102900.0,0.5742348]
[1747650011277,0.51585219,102910.0,102900.0,0.001]
[1747650011496,0.69073219,102910.0,102900.0,0.001]
[1747650011707,0.78804159,102910.0,102900.0,0.001]
[1747650012192,0.78804159,102910.0,102900.0,0.00780172]
[1747650012659,0.53886794,102910.0,102900.0,0.00780172]
[1747650012928,0.78804159,102910.0,102900.0,0.00680172]
[1747650013157,0.53986794,102910.0,102900.0,0.00680172]
[1747650013381,0.530151,102910.0,102900.0,0.00680172]
[1747650013575,0.529151,102910.0,102900.0,0.00680172]
[1747650013992,0.78032465,102910.0,102900.0,0.00680172]
[1747650017722,0.78032465,102910.0,102900.0,0.21088315]
[1747650018187,0.78032465,102910.0,102900.0,0.00680172]
[1747650019913,0.78032465,102910.0,102900.0,0.01189985]
[1747650023628,0.78032465,102910.0,102900.0,0.00509813]
[1747650024383,1.0294983,102910.0,102900.0,0.00509813]
[1747650024882,0.78032465,102910.0,102900.0,0.00509813]
[1747650026146,0.20408143,102900.0,102890.0,0.0051437]
[1747650026315,0.78578236,102900.0,102890.0,0.0051437]
[1747650026511,0.77606448,102900.0,102890.0,0.0051437]
[1747650027578,0.77706448,102900.0,102890.0,0.0051437]
[1747650027792,0.77706448,102900.0,102890.0,0.0061437]
[1747650028012,0.34349083,102900.0,102890.0,0.20052605]
[1747650028236,0.26561644,102900.0,102890.0,0.21996361]
[1747650028501,0.45009856,102900.0,102890.0,0.2199638]
[1747650028731,0.45009856,102900.0,102890.0,0.22968253]
[1747650028732,0.0421,102900.0,102890.0,0.22968253]
[1747650028966,0.05181732,102900.0,102890.0,0.23940098]
[1747650029173,0.0421,102900.0,102890.0,0.23940098]
[1747650029387,0.05181732,102900.0,102890.0,0.23940098]
[1747650029703,0.06153502,102900.0,102890.0,0.23940098]
[1747650029903,0.07125243,102900.0,102890.0,0.23940098]
[1747650030107,0.05181732,102900.0,102890.0,0.23940098]
[1747650030317,0.0421,102900.0,102890.0,0.23940098]
[1747650030744,0.0321,102900.0,102890.0,0.23940098]
[1747650031138,0.0165,102900.0,102890.0,0.23940098]
[1747650031345,0.0265,102900.0,102890.0,0.57940098]
[1747650031557,0.0265,102900.0,102890.0,0.69125123]
[1747650031763,0.011,102900.0,102890.0,0.70635123]
[1747650032009,0.001,102900.0,102890.0,0.71145123]
[1747650032201,0.011,102900.0,102890.0,0.71145123]
[1747650032584,0.66372932,102920.0,102910.0,0.22349539]
[1747650033142,0.66372932,102920.0,102910.0,0.22349548]
[1747650033663,0.66672932,102920.0,102910.0,0.2353804]
[1747650033873,0.67072932,102920.0,102910.0,0.2353804]
[1747650034378,0.67072932,102920.0,102910.0,0.24509706]
[1747650034827,0.67072932,102920.0,102910.0,0.2353804]
[1747650035035,0.007,102920.0,102910.0,0.58509696]
[1747650035239,0.016,102920.0,102910.0,0.58509696]
[1747650035659,0.019,102920.0,102910.0,0.58509696]
[1747650035884,0.019,102920.0,102910.0,0.57321204]
[1747650041508,0.04371543,102920.0,102910.0,0.57321204]
[1747650043788,0.52636275,102920.0,102910.0,0.55377873]
[1747650044040,0.22654457,102910.0,102900.0,0.22832317]
[1747650044268,0.05163303,102910.0,102900.0,0.24775828]
[1747650044490,0.25569501,102910.0,102900.0,0.53436345]
[1747650044726,0.505152,102910.0,102900.0,0.34]
[1747650044958,0.27485184,102900.0,102890.0,0.23842302]
[1747650045181,0.25541607,102900.0,102890.0,0.58814156]
[1747650045850,0.06133483,102900.0,102890.0,0.56358421]
[1747650046077,0.26541607,102900.0,102890.0,0.21386586]
[1747650046362,0.26541607,102900.0,102890.0,0.23630304]
[1747650048285,0.27513405,102900.0,102890.0,0.24309482]
[1747650048617,0.26541607,102900.0,102890.0,0.24309482]
[1747650049786,0.06133483,102900.0,102890.0,0.24309482]
[1747650049999,0.016,102900.0,102890.0,0.59792302]
[1747650050209,0.05031656,102910.0,102900.0,0.22351682]
[1747650050596,0.25437798,102910.0,102900.0,0.22351682]
[1747650050835,0.06003341,102910.0,102900.0,0.22351682]
[1747650051037,0.05031647,102910.0,102900.0,0.22351682]
[1747650051285,0.26409482,102910.0,102900.0,0.21379931]
[1747650051506,0.26409482,102910.0,102900.0,0.22451691]
[1747650053068,0.26409482,102910.0,102900.0,0.22451701]
[1747650053278,0.26409482,102910.0,102900.0,0.23423461]
[1747650053453,0.27381195,102910.0,102900.0,0.22159118]
[1747650053693,0.27381195,102910.0,102900.0,0.2118733]
[1747650053925,0.27381195,102910.0,102900.0,0.23130897]
[1747650054164,0.27381195,102910.0,102900.0,0.24102667]
[1747650054884,0.27381195,102910.0,102900.0,0.23130897]
[1747650055151,0.27381195,102910.0,102900.0,0.24102667]
[1747650055380,0.27381195,102910.0,102900.0,0.23130897]
[1747650055607,0.26409548,102910.0,102900.0,0.00779178]
[1747650055827,0.49383535,102910.0,102900.0,0.00779178]
[1747650056288,0.2446617,102910.0,102900.0,0.20215523]
[1747650056510,0.2446617,102910.0,102900.0,0.2118734]
[1747650056721,0.2446617,102910.0,102900.0,0.22159147]
[1747650057776,0.2446617,102910.0,102900.0,0.23130945]
[1747650058929,0.0406,102910.0,102900.0,0.23130945]
[1747650059138,0.06003303,102910.0,102900.0,0.25074475]
[1747650059541,0.05031637,102910.0,102900.0,0.25074475]
[1747650059749,0.06003293,102910.0,102900.0,0.25074475]
[1747650060199,0.06974968,102910.0,102900.0,0.25074475]
[1747650060779,0.51326895,102910.0,102900.0,0.00779178]
[1747650060993,0.5035522,102910.0,102900.0,0.00779178]
[1747650061202,0.5035522,102910.0,102900.0,0.20215523]
[1747650061408,0.5035522,102910.0,102900.0,0.2118734]
[1747650061820,0.5035522,102910.0,102900.0,0.22159147]
[1747650062888,0.49383535,102910.0,102900.0,0.00779178]
[1747650063304,0.68743535,102910.0,102900.0,0.00779178]
[1747650063514,0.68743535,102910.0,102900.0,0.00609848]
[1747650063865,0.67743535,102910.0,102900.0,0.00609848]
[1747650066325,0.87095535,102910.0,102900.0,0.00609848]
[1747650066757,0.86123822,102910.0,102900.0,0.00609848]
[1747650068027,0.86123822,102910.0,102900.0,0.2101801]
[1747650068235,0.86123822,102910.0,102900.0,0.00609848]
[1747650070259,0.95854762,102910.0,102900.0,0.00609848]
[1747650071607,1.20772127,102910.0,102900.0,0.00609848]
[1747650071817,1.54772127,102910.0,102900.0,0.00609848]
[1747650074084,1.55750563,102910.0,102900.0,0.00609848]
[1747650074495,1.55750563,102910.0,102900.0,0.001]
[1747650076833,1.55737064,102910.0,102900.0,0.001]
[1747650079877,1.65468004,102910.0,102900.0,0.001]
[1747650080094,0.20408143,102900.0,102890.0,4.557e-05]
[1747650080306,1.25081813,102900.0,102890.0,4.557e-05]
[1747650082352,1.25081813,102900.0,102890.0,0.00104557]
[1747650086397,1.44321813,102900.0,102890.0,0.00104557]
[1747650086828,1.63685813,102900.0,102890.0,0.00104557]
[1747650088874,1.25081813,102900.0,102890.0,0.00104557]
[1747650089112,1.63701813,102900.0,102890.0,0.00104557]
[1747650089361,1.63709813,102900.0,102890.0,0.00104557]
[1747650089584,1.63709813,102900.0,102890.0,4.557e-05]
[1747650089785,1.64009813,102900.0,102890.0,4.557e-05]
[1747650089997,1.19824448,102900.0,102890.0,4.557e-05]
[1747650090207,1.39112448,102900.0,102890.0,4.557e-05]
[1747650090417,1.64029813,102900.0,102890.0,4.557e-05]
[1747650090845,1.44741813,102900.0,102890.0,4.557e-05]
[1747650091089,1.64021813,102900.0,102890.0,4.557e-05]
[1747650093322,1.25381813,102900.0,102890.0,4.557e-05]
[1747650093547,1.39004448,102900.0,102890.0,4.557e-05]
[1747650093768,1.39020448,102900.0,102890.0,4.557e-05]
[1747650094191,1.39016448,102900.0,102890.0,4.557e-05]
[1747650095389,1.19740448,102900.0,102890.0,4.557e-05]
[1747650095591,1.38996448,102900.0,102890.0,4.557e-05]
[1747650095951,0.45408,102900.0,102890.0,0.19442792]
[1747650096156,0.02271732,102900.0,102890.0,0.24458412]
[1747650096362,0.20571741,102900.0,102890.0,0.24458412]
[1747650096567,0.21571741,102900.0,102890.0,0.24458412]
[1747650096801,0.2351528,102900.0,102890.0,0.24458422]
[1747650096994,0.42751625,102900.0,102890.0,0.24458422]
[1747650097193,0.42751625,102900.0,102890.0,0.24458431]
[1747650097399,0.42751625,102900.0,102890.0,0.27081309]
[1747650097604,0.22343492,102900.0,102890.0,0.27081309]
[1747650097810,0.23315253,102900.0,102890.0,0.27081309]
[1747650098014,0.43723386,102900.0,102890.0,0.27081309]
[1747650098187,0.42651598,102900.0,102890.0,0.27081309]
[1747650098421,0.43623377,102900.0,102890.0,0.27081309]
[1747650098649,0.43623377,102900.0,102890.0,0.27181309]
[1747650099160,0.43623377,102900.0,102890.0,0.26209464]
[1747650099384,0.43623377,102900.0,102890.0,0.27181309]
[1747650100095,0.43623443,102900.0,102890.0,0.2181197]
[1747650100325,0.43623499,102900.0,102890.0,0.22165726]
[1747650100480,0.69657315,102900.0,102890.0,0.00783735]
[1747650100690,0.69657315,102900.0,102890.0,0.21193872]
[1747650100909,0.69657315,102900.0,102870.0,0.02]
[1747650100910,1.39088264,102900.0,102870.0,0.02]
[1747650101120,0.91753048,102880.0,102870.0,0.02047631]
[1747650101272,0.86111683,102880.0,102870.0,0.02047631]
[1747650102126,0.86111683,102880.0,102870.0,0.02147631]
[1747650102331,0.86111683,102880.0,102870.0,0.02047631]
[1747650102540,0.78368374,102880.0,102870.0,0.02047631]
[1747650102748,0.78368374,102880.0,102870.0,0.02147631]
[1747650105015,0.97712374,102880.0,102870.0,0.02147631]
[1747650105169,0.59292374,102880.0,102870.0,0.02047631]
[1747650105376,0.97908374,102880.0,102870.0,0.02047631]
[1747650106195,0.98100374,102880.0,102870.0,0.02047631]
[1747650106370,0.98100374,102880.0,102870.0,0.01879631]
[1747650114445,0.52345009,102880.0,102870.0,0.01879631]
[1747650114797,0.57982374,102880.0,102870.0,0.01879631]
[1747650115016,0.98140374,102880.0,102870.0,0.01879631]
[1747650118030,0.59572374,102880.0,102870.0,0.01879631]
[1747650118235,0.98100374,102880.0,102870.0,0.01879631]
[1747650120813,0.33065009,102880.0,102870.0,0.01879631]
[1747650121029,0.32487005,102880.0,102870.0,0.01879631]
[1747650121239,0.50751047,102880.0,102870.0,0.01879631]
[1747650121896,0.22755999,102880.0,102870.0,0.04471731]
[1747650122141,0.23728071,102880.0,102870.0,0.03499631]
[1747650122351,0.22756113,102880.0,102870.0,0.01879631]
[1747650122564,0.47673478,102880.0,102870.0,0.01879631]
[1747650122793,0.22756113,102880.0,102870.0,0.01879631]
[1747650122942,0.22384107,102880.0,102870.0,0.01879631]
[1747650123159,0.39660124,102880.0,102870.0,0.21321645]
[1747650123423,0.43547958,102880.0,102870.0,0.04509329]
[1747650123589,0.44519964,102880.0,102870.0,0.04509329]
[1747650123791,0.44519964,102880.0,102870.0,0.58923434]
[1747650123792,0.40632045,102880.0,102870.0,0.58923434]
[1747650123996,0.42575962,102880.0,102870.0,0.39481429]
[1747650124628,0.4354792,102880.0,102870.0,0.38509329]
[1747650124833,0.22383705,102890.0,102870.0,0.61839611]
[1747650125042,0.19440124,102880.0,102870.0,0.60767577]
[1747650125248,0.20412064,102880.0,102870.0,0.5990763]
[1747650125458,0.20412064,102880.0,102870.0,0.60879674]
[1747650125662,0.21384003,102880.0,102870.0,0.58935577]
[1747650125863,0.21384012,102880.0,102870.0,0.57963515]
[1747650126077,0.21384003,102880.0,102870.0,0.58935577]
[1747650126320,0.21384003,102880.0,102870.0,0.57963515]
[1747650126551,0.21384003,102880.0,102870.0,0.58935577]
[1747650126944,0.21184003,102880.0,102870.0,0.57963515]
[1747650127689,0.21184003,102880.0,102870.0,0.57453817]
[1747650128761,0.21184003,102880.0,102870.0,0.56943817]
[1747650129133,0.21184003,102880.0,102870.0,0.57915879]
[1747650129805,0.19240124,102880.0,102870.0,0.58887923]
[1747650130025,0.3965994,102890.0,102880.0,0.21384126]
[1747650130264,0.27496512,102880.0,102870.0,0.34047631]
[1747650130460,0.54003877,102880.0,102870.0,0.34047631]
[1747650130672,0.2357213,102880.0,102870.0,0.34047631]
[1747650131337,0.23945962,102880.0,102870.0,0.34047631]
[1747650131549,0.23945962,102880.0,102870.0,0.56622272]
[1747650131550,0.21412045,102880.0,102870.0,0.56622272]
[1747650131764,0.2238364,102890.0,102870.0,0.60646303]
[1747650131966,0.44579434,102890.0,102870.0,0.59774241]
[1747650132169,0.43607523,102890.0,102880.0,0.00971996]
[1747650132384,0.44579425,102890.0,102870.0,0.59774241]
[1747650132794,0.20412045,102880.0,102870.0,0.59774307]
[1747650133001,0.20412045,102880.0,102870.0,0.60646341]
[1747650133439,0.20412045,102880.0,102870.0,0.59674297]
[1747650133673,0.43607513,102890.0,102880.0,0.20412111]
[1747650133883,0.43607513,102890.0,102880.0,0.01944002]
[1747650134092,0.44579415,102890.0,102870.0,0.59674231]
[1747650134317,0.44679415,102890.0,102880.0,0.01188484]
[1747650134492,0.44667415,102890.0,102880.0,0.01188484]
[1747650134730,0.44667415,102890.0,102880.0,0.0216049]
[1747650134942,0.44867415,102890.0,102880.0,0.01188484]
[1747650135558,0.23655513,102890.0,102880.0,0.0216049]
[1747650135767,0.45811298,102890.0,102880.0,0.01188484]
[1747650135985,0.25599298,102890.0,102880.0,0.01188484]
[1747650136196,0.44835462,102890.0,102880.0,0.01188484]
[1747650136831,0.003,102890.0,102880.0,0.21600595]
[1747650137059,0.003,102890.0,102880.0,0.27118588]
[1747650137726,0.003,102890.0,102880.0,0.61118588]
[1747650138156,0.23353799,102890.0,102880.0,0.35188484]
[1747650138366,0.24883799,102890.0,102880.0,0.35188484]
[1747650138632,0.24883799,102890.0,102880.0,0.37132467]
[1747650138801,0.26827602,102890.0,102880.0,0.35188484]
[1747650139113,0.25855691,102890.0,102880.0,0.34679163]
[1747650139251,0.25855691,102890.0,102880.0,0.35651169]
[1747650139734,0.23911916,102890.0,102880.0,0.55091293]
[1747650139922,0.24883789,102890.0,102880.0,0.56063289]
[1747650140769,0.22381916,102890.0,102880.0,0.58007244]
[1747650140970,0.21410061,102890.0,102880.0,0.58007253]
[1747650141189,0.22381906,102890.0,102880.0,0.58979221]
[1747650141392,0.23353761,102890.0,102880.0,0.58007253]
[1747650143141,0.24973761,102890.0,102880.0,0.58007253]
[1747650146026,0.23030061,102890.0,102880.0,0.58007215]
[1747650146269,0.24001916,102890.0,102880.0,0.58007215]
[1747650146939,0.23030061,102890.0,102880.0,0.58007215]
[1747650147141,0.24001906,102890.0,102880.0,0.58007215]
[1747650147366,0.2497377,102890.0,102880.0,0.57035247]
[1747650148067,0.24001906,102890.0,102880.0,0.58007215]
[1747650149144,0.24001906,102890.0,102880.0,0.57035247]
[1747650149329,0.2497377,102890.0,102880.0,0.56763643]
[1747650150313,0.24001906,102890.0,102880.0,0.58707569]
[1747650150530,0.24001906,102890.0,102880.0,0.57735611]
[1747650150967,0.24973761,102890.0,102880.0,0.57735611]
[1747650151841,0.24001906,102890.0,102880.0,0.58707569]
[1747650152053,0.22058235,102890.0,102880.0,0.58707513]
[1747650152278,0.23030071,102890.0,102880.0,0.58707522]
[1747650152523,0.43416151,102910.0,102890.0,0.23325691]
[1747650152749,0.24456113,102910.0,102900.0,0.20408162]
[1747650152971,0.2387776,102910.0,102900.0,0.2137995]
[1747650153150,0.24849445,102910.0,102900.0,0.20408162]
[1747650153412,0.25821148,102910.0,102900.0,0.21787528]
[1747650153635,0.27401148,102910.0,102900.0,0.20815721]
[1747650153918,0.027,102910.0,102900.0,0.24684125]
[1747650154135,0.015,102910.0,102900.0,0.24684125]
[1747650154353,0.013,102910.0,102900.0,0.24684125]
[1747650154578,0.003,102910.0,102900.0,0.58684125]
[1747650154803,0.003,102910.0,102900.0,0.60274125]
[1747650155034,0.003,102910.0,102900.0,0.60784125]
[1747650155255,0.007,102910.0,102900.0,0.7196915]
[1747650155700,0.45523458,102930.0,102920.0,0.21375758]
[1747650155941,0.45523458,102930.0,102920.0,0.2234732]
[1747650155942,0.22982148,102930.0,102920.0,0.2234732]
[1747650156171,0.23953634,102930.0,102920.0,0.22754888]
[1747650156411,0.23953634,102930.0,102920.0,0.21783317]
[1747650156654,0.00971081,102970.0,102960.0,0.01942397]
[1747650156899,0.0097109,102970.0,102960.0,0.53425019]
[1747650157116,0.00971071,102970.0,102960.0,0.56352274]
[1747650157337,0.0718316,102980.0,102970.0,0.21365435]
[1747650157556,0.10096223,102980.0,102970.0,0.23307643]
[1747650158229,0.11067275,102980.0,102970.0,0.23307643]
[1747650158449,0.11067275,102980.0,102970.0,0.23715202]
[1747650158664,0.10096223,102980.0,102970.0,0.23715202]
[1747650159327,0.10096223,102980.0,102970.0,0.24222024]
[1747650159977,0.10196223,102980.0,102970.0,0.24222024]
[1747650160445,0.10296223,102980.0,102970.0,0.24222024]
[1747650160739,0.0932518,102980.0,102970.0,0.24222024]
[1747650161059,0.10296223,102980.0,102970.0,0.24222024]
[1747650161303,0.03332174,102980.0,102970.0,0.24222024]
[1747650161575,0.03332174,102980.0,102970.0,0.69407049]
[1747650162037,0.03332174,102980.0,102970.0,0.89064227]
[1747650162276,0.03232174,102980.0,102970.0,0.89064227]
[1747650162732,0.03132174,102980.0,102970.0,0.90584227]
[1747650162956,0.03132174,102980.0,102970.0,0.93506]
[1747650163172,0.03132174,102980.0,102970.0,0.90684227]
[1747650163378,0.03132174,102980.0,102970.0,0.70520227]
[1747650163591,0.03132174,102980.0,102970.0,0.90566728]
[1747650163804,0.03132174,102980.0,102970.0,0.93388501]
[1747650164261,0.03132174,102980.0,102970.0,0.93888501]
[1747650164481,0.03132174,102980.0,102970.0,0.94288501]
[1747650165298,0.03132174,102980.0,102970.0,0.91466728]
[1747650165493,0.03132174,102980.0,102970.0,0.94288501]
[1747650166034,0.03132174,102980.0,102970.0,0.91466728]
[1747650166250,0.03132174,102980.0,102970.0,0.94288501]
[1747650166682,0.03132174,102980.0,102970.0,0.73720942]
[1747650166905,0.03132174,102980.0,102970.0,0.93876942]
[1747650167776,0.03132174,102980.0,102970.0,0.91055169]
[1747650167991,0.03132174,102980.0,102970.0,0.93876942]
[1747650168886,0.0166,103010.0,103000.0,0.56329982]
[1747650169184,0.19413712,103020.0,103010.0,0.55357007]
[1747650169185,0.0152,103020.0,103010.0,0.55357007]
[1747650169625,0.0152,103020.0,103010.0,0.5817878]
[1747650170065,0.01567693,103020.0,103010.0,0.5817878]
[1747650170505,0.01567693,103020.0,103010.0,0.59629339]
[1747650171344,0.00047693,103020.0,103010.0,0.70814364]
[1747650171992,0.00247693,103020.0,103010.0,0.70814364]
[1747650172418,0.00247693,103020.0,103010.0,0.67992591]
[1747650172868,0.00247693,103020.0,103010.0,0.68394073]
[1747650173298,0.00247693,103020.0,103010.0,0.70998727]
[1747650174170,0.00247693,103020.0,103010.0,0.68394073]
[1747650174396,0.00247693,103020.0,103010.0,0.88542073]
[1747650174825,0.00247693,103020.0,103010.0,0.68394073]
[1747650175286,0.00047693,103020.0,103010.0,0.68394073]
[1747650175737,0.00047693,103020.0,103010.0,0.68494073]
[1747650175961,0.00047693,103020.0,103010.0,0.88642073]
[1747650176608,0.015,103040.0,103030.0,0.57292469]
[1747650176861,0.015,103040.0,103030.0,0.57306058]
[1747650177083,0.015,103040.0,103030.0,0.5770754]
[1747650177306,0.21880349,103040.0,103030.0,0.557665]
[1747650177525,0.22469937,103040.0,103030.0,0.57707568]
[1747650177990,0.25381257,103040.0,103030.0,0.35396853]
[1747650178200,0.25581248,103040.0,103030.0,0.56749846]
[1747650178421,0.24810789,103040.0,103030.0,0.56749837]
[1747650178635,0.24810789,103040.0,103030.0,0.58389887]
[1747650178850,0.24810789,103040.0,103030.0,0.56437543]
[1747650179066,0.24810779,103040.0,103030.0,0.57408096]
[1747650179303,0.24810779,103040.0,103030.0,0.57408105]
[1747650179739,0.24810779,103040.0,103030.0,0.55466971]
[1747650179952,0.24810779,103040.0,103030.0,0.56437552]
[1747650180180,0.24810779,103040.0,103030.0,0.57408114]
[1747650180400,0.24810779,103040.0,103030.0,0.58378667]
[1747650180651,0.24810779,103040.0,103030.0,0.35084559]
[1747650180895,0.24423489,103040.0,103030.0,0.54797473]
[1747650181153,0.23453021,103040.0,103030.0,0.53826892]
[1747650181358,0.24423489,103040.0,103030.0,0.35385662]
[1747650181562,0.23453021,103040.0,103030.0,0.54797483]
[1747650181772,0.22482572,103040.0,103030.0,0.55768064]
[1747650181974,0.23453021,103040.0,103030.0,0.55768064]
[1747650182253,0.24423489,103040.0,103030.0,0.55768064]
[1747650182450,0.24423489,103040.0,103030.0,0.54797483]
[1747650182688,0.23453021,103040.0,103030.0,0.55768064]
[1747650182912,0.22482572,103040.0,103030.0,0.56738636]
[1747650183156,0.0196,103040.0,103030.0,0.58679704]
[1747650183356,0.00011693,103050.0,103040.0,0.22321304]
[1747650183588,0.00011693,103050.0,103040.0,0.56321304]
[1747650184016,0.21950064,103050.0,103040.0,0.56321304]
[1747650184219,0.20979747,103050.0,103040.0,0.56321304]
[1747650184705,0.20979747,103050.0,103040.0,0.56722786]
[1747650185055,0.01571693,103050.0,103040.0,0.56722786]
[1747650185499,0.16323602,103050.0,103040.0,0.56722786]
[1747650185753,0.17493919,103050.0,103040.0,0.55752356]
[1747650185971,0.1953461,103050.0,103040.0,0.53811419]
[1747650186184,0.18564255,103050.0,103040.0,0.56722842]
[1747650186362,0.2115461,103050.0,103040.0,0.55752393]
[1747650186922,0.20184255,103050.0,103040.0,0.5769332]
[1747650187123,0.2115461,103050.0,103040.0,0.56722861]
[1747650187332,0.20184255,103050.0,103040.0,0.5769332]
[1747650187481,0.21154601,103050.0,103040.0,0.56722861]
[1747650188052,0.21154601,103050.0,103040.0,0.55752393]
[1747650188272,0.21154601,103050.0,103040.0,0.56722861]
[1747650188462,0.22674601,103050.0,103040.0,0.56722861]
[1747650188694,0.22674601,103050.0,103040.0,0.5769332]
[1747650190087,0.22674601,103050.0,103040.0,0.56722861]
[1747650190715,0.22674601,103050.0,103040.0,0.5672287]
[1747650191423,0.22674601,103050.0,103040.0,0.57693329]
[1747650191763,0.23644966,103050.0,103040.0,0.53811419]
[1747650191963,0.23644966,103050.0,103040.0,0.54781897]
[1747650192191,0.1704809,103050.0,103040.0,0.55752356]
[1747650192391,0.18018445,103050.0,103040.0,0.55752365]
[1747650193019,0.17918445,103050.0,103040.0,0.55752365]
[1747650193620,0.1694809,103050.0,103040.0,0.55752365]
[1747650193817,0.1694809,103050.0,103040.0,0.56722824]
[1747650194226,0.1674809,103050.0,103040.0,0.56722824]
[1747650194363,0.13256216,103050.0,103040.0,0.56722824]
[1747650195136,0.14226571,103050.0,103040.0,0.57693254]
[1747650195486,0.14226562,103050.0,103040.0,0.57693254]
[1747650196160,0.11898556,103050.0,103040.0,0.57693254]
[1747650196363,0.12868921,103050.0,103040.0,0.57693264]
[1747650196585,0.12868911,103050.0,103040.0,0.58663694]
[1747650198390,0.11898556,103050.0,103040.0,0.58663694]
[1747650198597,0.05080653,103050.0,103040.0,0.58663694]
[1747650198964,0.19832697,103050.0,103040.0,0.58663694]
[1747650199184,0.20803033,103050.0,103040.0,0.58663694]